Cogmind - Beta 13 @@@ ROGUE MODE // 2024.04.26 @ 16:08:04 Player: SovietPaperclip Result: Destroyed by SJ-P5K(z) with Zionite Laser-S Performance ------------- Evolutions (1) 500 Regions Visited (5) 1000 Robots Destroyed (24) 120 Value Destroyed (421) 421 Prototype IDs (3) 60 Alien Tech Used (0) 0 Bonus (0) 0 TOTAL SCORE: 2101 Bonus ------- None Cogmind --------- Core Integrity 0/400 Matter 194/300 Energy 53/100 System Corruption 0% Temperature Cool (9) Movement Core (100) Ox1 Location -7/Deep Caves Parts ------- > --- POWER (1) -------- (None) > --- PROPULSION (3) --- Light Treads > --- UTILITY (3) ------ Zionite Weapon Casing > --- WEAPON (2) ------- Zionite Laser-S > --- INVENTORY (5) ---- Surveybot 24 Scanner Surveybot 24 Chip Authchip [Storage] Hacking Drone Bay Heavy Battle Rifle Peak State ------------ > --- POWER ------------ Heavy Ion Engine > --- PROPULSION ------- Light Treads Light Treads Light Treads > --- UTILITY ---------- High-capacity Storage Unit Makeshift Light Armor Plating Shield Generator > --- WEAPON ----------- Heavy Battle Rifle Heavy Battle Rifle > --- INVENTORY -------- Improved Ion Engine Light Treads Cooling System Surveybot 24 Scanner Surveybot 24 Chip Makeshift System Shield Authchip [Propulsion] Authchip [Propulsion] Authchip [Propulsion] Authchip [Propulsion] Authchip [Storage] Authchip [Processor] Hacking Drone Bay Heavy Beamcaster Barrage Gun Barrage Gun Barrage Gun Barrage Gun Slug Cannon Grenade Launcher [Rating: 29] Favorites ----------- Power Heavy Ion Engine Engine Heavy Ion Engine Propulsion Light Treads Treads Light Treads Utility High-capacity Storage Unit Device Shield Generator Storage High-capacity Storage Unit Protection Makeshift Light Armor Plating Weapon Heavy Battle Rifle Energy Gun Zionite Laser-S Ballistic Gun Heavy Battle Rifle Ballistic Cannon Slug Cannon Launcher Grenade Launcher Build | -11 -10 -9 -9 -7 -7 ------- Run | Yrd Mat Mat Min Zio Dee Slots Evolved 2 | . . 2 . . . Power . | . . . . . . Propulsion 1 | . . 1 . . . Utility 1 | . . 1 . . . Weapon . | . . . . . . Parts Attached 24 | 5 4 7 . 3 5 Power 3 | 1 . 2 . . . Engine 3 | 1 . 2 . . . Core . | . . . . . . Reactor . | . . . . . . Propulsion 4 | 2 . 1 . . 1 Treads 4 | 2 . 1 . . 1 Leg . | . . . . . . Wheel . | . . . . . . Hover . | . . . . . . Flight . | . . . . . . Utility 7 | 1 1 2 . 1 2 Device 2 | . . 1 . . 1 Storage 2 | 1 1 . . . . Processor . | . . . . . . Hackware . | . . . . . . Protection 3 | . . 1 . 1 1 Artifact . | . . . . . . Weapon 10 | 1 3 2 . 2 2 Energy Gun 1 | . . . . . 1 Energy Cannon . | . . . . . . Ballistic Gun 5 | 1 . 2 . 2 . Ballistic Cannon 1 | . . . . . 1 Launcher 3 | . 3 . . . . Special Weapon . | . . . . . . Impact Weapon . | . . . . . . Slashing Weapon . | . . . . . . Piercing Weapon . | . . . . . . Special Melee Weapon . | . . . . . . Unidentified Prototypes 3 | . . 1 . . 2 Parts Lost 8 | . . . . . 8 Power 1 | . . . . . 1 Propulsion 3 | . . . . . 3 Utility 2 | . . . . . 2 Weapon 2 | . . . . . 2 Highest Loss Streak 8 | . . . . . 8 To Critical Strikes . | . . . . . . Average Slot Usage (%) 93 | . 71 87 . 99 92 Engine 11 | . 14 11 . 11 10 Treads 31 | . 28 30 . 33 30 Device 8 | . . 8 . 11 9 Storage 11 | . 14 11 . 11 10 Protection 8 | . . 5 . 11 10 Ballistic Gun 20 | . 14 20 . 21 18 Naked Turns . | . . . . . . Heaviest Build 62 | 9 47 59 59 62 62 Greatest Support 60 | 40 40 60 60 60 60 Greatest Overweight (x) 2 | . 1 1 . 1 2 Average Overweight (x) . | . . . . . . Largest Inventory Capacity 20 | 8 20 20 20 20 20 Average Capacity 19 | 7 19 20 20 20 18 Most Carried 20 | 5 4 7 6 20 20 Average Carried 14 | 1 2 5 6 18 18 Final Capacity 20 | 8 20 20 20 20 5 Final Carried 20 | 1 4 6 6 20 5 Class Distribution -------------------- 100% | Mutant Dominant Class ---------------- Mutant | -10/Materials Mutant | -9/Materials Mutant | -9/Mines Mutant | -7/Zion Mutant | -7/Deep Caves Resources | -11 -10 -9 -9 -7 -7 ----------- Run | Yrd Mat Mat Min Zio Dee Matter Collected 577 | 247 102 164 . 56 8 Remotely . | . . . . . . Salvage Created 521 | . 302 211 . . 8 Parts 44 | . 29 15 . . . Haulers Intercepted 1 | . 1 . . . . Recyclers Shooed . | . . . . . . Parts Field Recycled . | . . . . . . Retrieved Matter . | . . . . . . Parts Self-Destructed . | . . . . . . Prevented . | . . . . . . Kills | -11 -10 -9 -9 -7 -7 ------- Run | Yrd Mat Mat Min Zio Dee Combat Hostiles Destroyed 16 | . 10 6 . . . Guns 8 | . 2 6 . . . AOE 8 | . 8 . . . . Classes Destroyed 8 | . 7 1 . . . Worker 3 | . 3 . . . . Builder 1 | . 1 . . . . Hauler 1 | . 1 . . . . Recycler 1 | . 1 . . . . Watcher 2 | . 1 1 . . . Swarmer 9 | . 6 3 . . . Grunt 5 | . 4 1 . . . Sentry 2 | . . 2 . . . Best Kill Streak 9 | . 9 3 . . . Combat Bots Only 5 | . 5 3 . . . Max Kills in Single Turn 5 | . 5 1 . . . Gunslinging . | . . . . . . Exploded 3 | . 3 . . . . Melee . | . . . . . . Uniques/NPCs Destroyed . | . . . . . . Combat | -11 -10 -9 -9 -7 -7 -------- Run | Yrd Mat Mat Min Zio Dee Hostile Shots Fired 136 | . 28 27 . . 81 Missed 51 | . 13 9 . . 29 Damage Taken 1894 | . 168 142 . . 1584 Core 447 | . 40 20 . . 387 Absorbed by Shields 124 | . . 57 . . 67 Redirected to Shielding 34 | . . . . . 34 Core Remaining (%) 92 | 100 84 . . . . Volleys Fired 46 | . 17 17 . . 12 Largest 2 | . 2 2 . . 2 Hottest 81 | . 50 46 . . 81 Shots Fired 82 | . 25 34 . . 23 Gun 68 | . 17 34 . . 17 Cannon 6 | . . . . . 6 Launcher 8 | . 8 . . . . Special . | . . . . . . Kinetic 73 | . 17 34 . . 22 Thermal 1 | . . . . . 1 Explosive 8 | . 8 . . . . Electromagnetic . | . . . . . . Robot Hit Streak 5 | . 3 5 . . 3 Robot Miss Streak 5 | . 3 2 . . 5 Penetration Max . | . . . . . . Secondary Targets . | . . . . . . Shots Hit Robots 42 | . 13 20 . . 9 Core Hits 39 | . 27 10 . . 2 Critical Kills . | . . . . . . Critical Parts Destroyed . | . . . . . . Critical Strikes . | . . . . . . Melee Attacks . | . . . . . . Impact . | . . . . . . Slashing . | . . . . . . Piercing . | . . . . . . Sneak Attacks . | . . . . . . Combat Hostiles . | . . . . . . Follow-up Attacks . | . . . . . . Damage Inflicted 1344 | . 741 319 . . 284 Guns 589 | . 73 319 . . 197 Cannons 87 | . . . . . 87 Explosions 668 | . 668 . . . . Melee . | . . . . . . Ramming . | . . . . . . Kinetic 647 | . 73 319 . . 255 Thermal 29 | . . . . . 29 Explosive 668 | . 668 . . . . Electromagnetic . | . . . . . . Impact . | . . . . . . Slashing . | . . . . . . Piercing . | . . . . . . Highest Corruption . | . . . . . . Average Corruption . | . . . . . . Corruption Purged . | . . . . . . Corruption Blocked . | . . . . . . Overload Shots . | . . . . . . Overflow Damage . | . . . . . . Projectiles . | . . . . . . Explosions . | . . . . . . Melee . | . . . . . . Knockbacks 1 | . . . . . 1 Impact . | . . . . . . Kinetic 1 | . . . . . 1 Secondary . | . . . . . . Self-Inflicted Damage 9 | . 9 . . . . Shots 1 | . 1 . . . . Rammed . | . . . . . . Targets Rammed . | . . . . . . Kicked . | . . . . . . Crushed . | . . . . . . Highest Temperature 298 | . 22 . . . 298 Average Temperature 111 | . 10 . . . 138 Received Heat Transfer 529 | . 63 22 . . 444 Effects 2 | . . . . . 2 Energy Bleed 1 | . . . . . 1 Interference 1 | . . . . . 1 Siege Activations . | . . . . . . Robots Corrupted . | . . . . . . Combat Hostiles . | . . . . . . Parts Fried . | . . . . . . Impact Corruptions . | . . . . . . Robots Melted . | . . . . . . Combat Hostiles . | . . . . . . Parts Melted . | . . . . . . Heat Transferred 9 | . . . . . 9 Parts Sabotaged . | . . . . . . Parts Stolen . | . . . . . . Parts Stripped . | . . . . . . Power Chain Reactions . | . . . . . . Alert | -11 -10 -9 -9 -7 -7 ------- Run | Yrd Mat Mat Min Zio Dee Peak Influence 233 | . 199 233 90 . . Initial 90 | . . . 90 . . Average 73 | . 48 117 90 . . Maximum Alert Level 1 | . . 1 . . . Low Security (%) 85 | 100 100 62 100 . . Level 1 14 | . . 37 . . . Level 2 . | . . . . . . Level 3 . | . . . . . . Level 4 . | . . . . . . Level 5 . | . . . . . . High Security . | . . . . . . Max Security . | . . . . . . Squads Dispatched . | . . . . . . Investigation . | . . . . . . Extermination . | . . . . . . Reinforcement . | . . . . . . Assault . | . . . . . . Garrison . | . . . . . . Intercept . | . . . . . . Searches Triggered . | . . . . . . Construction Impeded . | . . . . . . Haulers Reinforced . | . . . . . . Active Scanning Responses . | . . . . . . Cargo Convoy Interrupts . | . . . . . . Stealth | -11 -10 -9 -9 -7 -7 --------- Run | Yrd Mat Mat Min Zio Dee Distress Signals . | . . . . . . Communications Jammed . | . . . . . . Distress Signals . | . . . . . . Times Spotted 27 | . 12 12 . . 3 Peak Tracking Total 6 | . 5 5 . . 6 Tactical Retreats 2 | . . 2 . . . Traps | -11 -10 -9 -9 -7 -7 ------- Run | Yrd Mat Mat Min Zio Dee Traps Triggered . | . . . . . . Indirectly . | . . . . . . Trap Hack Attempts . | . . . . . . Triggered . | . . . . . . Disarmed . | . . . . . . Reprogrammed . | . . . . . . Reused . | . . . . . . Traps Extracted . | . . . . . . Installed . | . . . . . . Triggered . | . . . . . . Machines | -11 -10 -9 -9 -7 -7 ---------- Run | Yrd Mat Mat Min Zio Dee Machines Disabled 1 | . 1 . . . . Max in Single Turn 1 | . 1 . . . . Machines Repaired . | . . . . . . Machines Dismantled . | . . . . . . Machines Sabotaged . | . . . . . . Overloaded Fab Kills . | . . . . . . Hacking | -11 -10 -9 -9 -7 -7 --------- Run | Yrd Mat Mat Min Zio Dee Machines Accessed 2 | . 2 . . . . Terminals 2 | . 2 . . . . Fabricators . | . . . . . . Repair Stations . | . . . . . . Recycling Units . | . . . . . . Scanalyzers . | . . . . . . Garrison Access . | . . . . . . Total Hacks 3 | . 3 . . . . Successful 2 | . 2 . . . . Failed 1 | . 1 . . . . Catastrophic . | . . . . . . Database Lockouts . | . . . . . . Manual 5 | . 1 . . 4 . Terminals 3 | . 3 . . . . Fabricators . | . . . . . . Repair Stations . | . . . . . . Recycling Units . | . . . . . . Scanalyzers . | . . . . . . Garrison Access . | . . . . . . Terminal Hacks 2 | . 2 . . . . Part Schematic 1 | . 1 . . . . Unreport Threat 1 | . 1 . . . . Fabricator Hacks . | . . . . . . Repair Station Hacks . | . . . . . . Recycling Unit Hacks . | . . . . . . Scanalyzer . | . . . . . . Garrison Access Hacks . | . . . . . . Unauthorized Hacks . | . . . . . . Terminals . | . . . . . . Fabricators . | . . . . . . Repair Stations . | . . . . . . Recycling Units . | . . . . . . Scanalyzers . | . . . . . . Garrison Access . | . . . . . . Data Cores Recovered . | . . . . . . Used . | . . . . . . Hacking Detections 2 | . 2 . . . . Full Trace Events . | . . . . . . Feedback Events . | . . . . . . Feedback Blocked . | . . . . . . Robot Schematics Acquired . | . . . . . . Robots Built . | . . . . . . Authchips . | . . . . . . Time . | . . . . . . Total Robot Build Rating . | . . . . . . Part Schematics Acquired 1 | . 1 . . . . Parts Built . | . . . . . . Authchips . | . . . . . . Time . | . . . . . . Total Part Build Rating . | . . . . . . Parts Repaired . | . . . . . . Time . | . . . . . . Parts Recycled . | . . . . . . Recycled Matter . | . . . . . . Retrieved Matter . | . . . . . . Retrieved Components . | . . . . . . Parts Scanalyzed . | . . . . . . Part Schematics Acquired . | . . . . . . Parts Damaged . | . . . . . . Bothacking | -11 -10 -9 -9 -7 -7 ------------ Run | Yrd Mat Mat Min Zio Dee Used RIF Installer . | . . . . . . Robots Hacked . | . . . . . . Non-combat . | . . . . . . Combat . | . . . . . . Robot Hacks Applied . | . . . . . . Relay Couplers Released . | . . . . . . Fabnet Peak Effective % . | . . . . . . Robots Rewired . | . . . . . . Allies Hacked . | . . . . . . Hacks Repelled . | . . . . . . Allies | -11 -10 -9 -9 -7 -7 -------- Run | Yrd Mat Mat Min Zio Dee Total Allies 4 | . . . . 4 . Largest Group 4 | . . . . 4 4 Highest-Rated Group 115 | . . . . 115 115 Highest-Rated Ally 31 | . . . . 31 31 Total Orders . | . . . . . . Ally Attacks 15 | . . . . . 15 Total Damage 131 | . . . . . 131 Kills . | . . . . . . Allies Corrupted . | . . . . . . Allies Melted 1 | . . . . . 1 Intel | -11 -10 -9 -9 -7 -7 ------- Run | Yrd Mat Mat Min Zio Dee Robot Analysis Total . | . . . . . . Derelict Logs Recovered 2 | . . . . 2 . Drone Launches . | . . . . . . Drone Recoveries . | . . . . . . Exploration | -11 -10 -9 -9 -7 -7 ------------- Run | Yrd Mat Mat Min Zio Dee Turns Passed 3178 | 57 481 354 5 1938 343 Spaces Moved 1381 | 44 184 149 4 859 141 Core 43 | 21 . . . . 22 Treads 1338 | 23 184 149 4 859 119 Legs . | . . . . . . Wheels . | . . . . . . Hover . | . . . . . . Flight . | . . . . . . Fastest Speed 50 | 50 160 160 160 160 50 Average Speed 214 | 107 235 176 160 223 207 Slowest Speed 320 | 160 240 240 160 240 320 Overloaded Moves . | . . . . . . Propulsion Burnouts . | . . . . . . Robots Hopped . | . . . . . . Cave-ins Triggered . | . . . . . . Exploration Rate (%) 28 | 4 37 18 2 85 26 Regions Visited 5 Branch Regions 3 Pre-discovered Areas . | . . . . . . Known Exits Taken . | . . . . . . Unknown Exits Taken 5 | 1 1 1 1 1 . Scrap Searched 3 | . . . . 3 . Spaces Dug . | . . . . . . Terrain Destroyed 37 | . 36 . . . 1 Melee . | . . . . . . Projectile 1 | . . . . . 1 AOE 36 | . 36 . . . . Terrain Rammed . | . . . . . . Walls Destroyed . | . . . . . . Machines Disabled . | . . . . . . Actions | -11 -10 -9 -9 -7 -7 --------- Run | Yrd Mat Mat Min Zio Dee Total 1526 | 54 213 205 3 882 169 Wait 32 | . 1 26 . . 5 Move 1376 | 43 183 148 3 858 141 Hop . | . . . . . . Pick Up 32 | 6 4 4 . 16 2 Fast Attach 9 | . . 4 . 3 2 Attach 11 | 5 4 1 . . 1 Detach 3 | . 3 . . . . Swap 4 | . . 2 . . 2 Drop 12 | . 1 3 . 5 3 Fire 46 | . 17 17 . . 12 Melee . | . . . . . . Ram . | . . . . . . Kick . | . . . . . . Crush . | . . . . . . Escape Stasis . | . . . . . . Rewire 1 | . . . . . 1 Trap . | . . . . . . Miscellaneous . | . . . . . . Route ------- -11/Scrapyard -10/Materials -9/Materials -9/Mines -7/Zion (discovered 2 exits: [*Dee] / [*Pro]) -7/Deep Caves History --------- Turn | Location | Event 25 | -11/Scrapyard | Discovered new exit (range 14) 58 | -11/Scrapyard | Entered Materials 280 | -10/Materials | Discovered new exit (range 14) 315 | -10/Materials | Build established: Mutant 539 | -10/Materials | Entered another Materials area 539 | -9/Materials | Evolved 2 slots: Propulsion x1, Utility x1 739 | -9/Materials | Discovered new exit (range 12) 893 | -9/Materials | Entered Mines 894 | -9/Mines | A Derelict revealed a hidden shortcut to a safe place 898 | -9/Mines | Entered Zion 922 | -7/Zion | Given the Hacking Drone Bay 922 | -7/Zion | Found Prototype Device 1009 | -7/Zion | Discovered new exit (range 15) 1018 | -7/Zion | Acquired unknown access codes intercepted by a Zionite 1501 | -7/Zion | Gained Derelict followers 1614 | -7/Zion | Learned 8 Factory zone layouts 1926 | -7/Zion | Learned 8 Factory zone layouts 2015 | -7/Zion | Received a hallucinogenic algorithm 2788 | -7/Zion | Opened final containment barrier to the Deep Caves 2821 | -7/Zion | Discovered new exit (range 5) 2826 | -7/Zion | Saw the warning signs outside the Deep Caves entrance 2836 | -7/Zion | Entered Deep Caves 2836 | -7/Deep Caves | Accompanied by 4 allies 2935 | -7/Deep Caves | Found Surveybot 24 Chip 2939 | -7/Deep Caves | Found Surveybot 24 Scanner 3098 | -7/Deep Caves | Attacked by Z-Imprinter 3148 | -7/Deep Caves | Lost 4 allies 3159 | -7/Deep Caves | Core integrity fell below 50% 3166 | -7/Deep Caves | Core integrity fell below 20% 3175 | -7/Deep Caves | Found Prototype Protection 3175 | -7/Deep Caves | Identified Zio. Weapon Casing 3179 | -7/Deep Caves | Destroyed by SJ-P5K(z) with Zionite Laser-S Last Messages --------------- 03111_ OA-ME9(g) overheating. 03112_ OA-ME9(g) critical meltdown. 03117_ GZ-LQN(i) heat short circuits Arm. Wheel. 03117_ GZ-LQN(i) destroyed. 03122_ SJ-P5K(z) knocked back. 03126_ Lgt. Treads destroyed. 03130_ Cooling System destroyed. 03137_ Hvy. Battle Rifle destroyed. 03140_ Overheating: System interference. 03140_ Slug Cannon temporarily disabled. 03140_ Slug Cannon destroyed. 03146_ Overheating: Energy bleed (-53). 03150_ Lgt. Treads destroyed. 03154_ Mak. Light Armor Plating destroyed. 03154_ Dropped Hcp. Storage Unit. 03158_ Hvy. Ion Engine destroyed. 03175_ Acquired Prototype Protection. 03175_ Identified Zio. Weapon Casing. 03177_ Acquired Prototype Energy Gun. 03177_ Identified Zio. Laser-S. Map ----- +----------------------------------------------------+ | | | | | | | | | | | | | | | | | | | | | | | | | | | | | | | | | | | | | | | | | | | | | ???????????????????????####??????????????????????? | | ???????????????????????# #????###############???? | | ???????????????????????# *#?#### !##??? | | ???????????????????????# @### !![#??? | | ???????????????????????#I;;# [[!#### | | ?????????????###???????# ## ]!!!!## | | ?????????????# ## [[* | | ?????????? | | ?????????? z | | ?????????? | | ??????????? | | ??????????? """"" """""" | | ???????????? """""""""""""" | | ??????????? """""""""""""" | | ???????????? """""""""""""" | | ???????????? ""????????? | | ????????????? ""?????????""" | | ????????????? "??????????""" | | ?????????????? "???????????"" | | ???????????????? "???????????"" | | ?????????????????? "???????????" | | ????????????????????? ??????????? | | ??????????????????????? ????????????? | | ??????????????????????????????????????????? | | ????????????????????????????????????????????? | | ???????????????????????????????????????????????? | | ?????????????????????????????????????????????????? | | ?????????????????????????????????????????????????? | +----------------------------------------------------+ Best States ------------- Heat Dissipation 50 Energy Generation 14 Energy Capacity 280 Matter Stores 300 Matter Capacity 300 Sight Range 16 Terrain Scan Density 10 Armor Coverage 150 Evasion (%) 50 Recoil Reduction 3 Authchip Count 7 Item Schematics ----------------- Cargo Storage Unit | -10/Materials | Hacked Robot Schematics ------------------ None Fabricated ------------ Nothing Alien Tech Used ----------------- None Achievements -------------- None Challenges ------------ None Game ------ Seed DeepDefenseStick Manual? 0 Play Time 00:17:43 Cumulative 112.7 hours Start 2024.04.26 @ 15:52:25 End 2024.04.26 @ 16:08:04 Sessions 1 Manual Loads 0 Difficulty Rogue Special Mode None Game No. 140 Rogue 140 Adventurer 0 Explorer 0 Win Type - Total 1 Types 1/0/0/0/0/0/0/0/0 Lore% 48 Gallery% 52 Achievement% 50 Wizard Run 0 Options --------- Layout 1 ASCII 0 Keyboard 0 Movement Mouse Keybinds 0 Fullscreen 2 Font 32/Smallcaps Map View 50x40 Zoom Use 0% Tactical HUD 1 Map Filters NONE Filters NONE Steam 1 RUN: 6b0c24f7-1de9-4b09-a38d-e17c918f2fe0